[Event "Titled Tuesday Blitz May 25 2021"]
[White "Kapitanchuk, Tomas"]
[Black "Araujo Sanchez, Josue"]
[WhiteFideId "135046"]
[BlackFideId "6416896"]
[WhiteElo "1955"]
[BlackElo "2140"]
[Result "0-1"]
[Round "05"]
[TimeControl "180+1"]
[Date "2021.05.25"]
[WhiteClock "0:00:15"]
[BlackClock "0:00:17"]

1. e4 {[%clk 0:03:00]}  c6 {[%clk 0:02:59]} 2. d4 {[%clk 0:03:00]}  d5 {[%clk 0:03:00]} 3. exd5 {[%clk 0:03:00]}  cxd5 {[%clk 0:03:01]} 4. Bd3 {[%clk 0:03:01]}  Nf6 {[%clk 0:03:02]} 5. Bf4 {[%clk 0:03:00]}  Nc6 {[%clk 0:03:03]} 6. c3 {[%clk 0:03:00]}  Bg4 {[%clk 0:02:56]} 7. Qb3 {[%clk 0:03:00]}  Qc8 {[%clk 0:02:57]} 8. Nd2 {[%clk 0:02:59]}  e6 {[%clk 0:02:57]} 9. Ne2 {[%clk 0:02:58]}  Be7 {[%clk 0:02:56]} 10. Ng3 {[%clk 0:02:57]}  O-O {[%clk 0:02:50]} 11. h3 {[%clk 0:02:57]}  Bh5 {[%clk 0:02:50]} 12. Nxh5 {[%clk 0:02:56]}  Nxh5 {[%clk 0:02:51]} 13. Bh2 {[%clk 0:02:54]}  Bd8 {[%clk 0:02:43]} 14. Qd1 {[%clk 0:02:47]}  g6 {[%clk 0:02:42]} 15. O-O {[%clk 0:02:43]}  Bc7 {[%clk 0:02:41]} 16. Bxc7 {[%clk 0:02:38]}  Qxc7 {[%clk 0:02:42]} 17. Nf3 {[%clk 0:02:35]}  Rab8 {[%clk 0:02:41]} 18. Re1 {[%clk 0:02:29]}  b5 {[%clk 0:02:39]} 19. Ne5 {[%clk 0:02:25]}  Nxe5 {[%clk 0:02:35]} 20. Rxe5 {[%clk 0:02:13]}  Nf6 {[%clk 0:02:30]} 21. h4 {[%clk 0:01:49]}  b4 {[%clk 0:02:27]} 22. Re3 {[%clk 0:01:39]}  bxc3 {[%clk 0:02:26]} 23. bxc3 {[%clk 0:01:40]}  Rb2 {[%clk 0:02:24]} 24. Rg3 {[%clk 0:01:33]}  Qf4 {[%clk 0:02:21]} 25. Qf3 {[%clk 0:01:23]}  Qxf3 {[%clk 0:02:17]} 26. Rxf3 {[%clk 0:01:24]}  Kg7 {[%clk 0:02:17]} 27. a4 {[%clk 0:01:20]}  Rfb8 {[%clk 0:02:17]} 28. Bb5 {[%clk 0:01:16]}  Rc8 {[%clk 0:02:11]} 29. Rc1 {[%clk 0:01:13]}  Ne4 {[%clk 0:02:08]} 30. c4 {[%clk 0:01:07]}  Rd2 {[%clk 0:01:38]} 31. c5 {[%clk 0:00:56]}  Rxd4 {[%clk 0:01:37]} 32. c6 {[%clk 0:00:46]}  Rc7 {[%clk 0:01:38]} 33. Rb3 {[%clk 0:00:37]}  Nd6 {[%clk 0:01:36]} 34. g3 {[%clk 0:00:31]}  Kf6 {[%clk 0:01:31]} 35. Kg2 {[%clk 0:00:29]}  Rd2 {[%clk 0:01:30]} 36. Ba6 {[%clk 0:00:20]}  Ke7 {[%clk 0:01:23]} 37. Rb7 {[%clk 0:00:19]}  Ne8 {[%clk 0:01:07]} 38. Rcb1 {[%clk 0:00:19]}  Rc2 {[%clk 0:01:05]} 39. Bb5 {[%clk 0:00:16]}  a6 {[%clk 0:00:58]} 40. Bxa6 {[%clk 0:00:15]}  Rxc6 {[%clk 0:00:58]} 41. R1b6 {[%clk 0:00:11]}  Rxb6 {[%clk 0:00:52]} 42. Rxb6 {[%clk 0:00:12]}  Nd6 {[%clk 0:00:51]} 43. Bd3 {[%clk 0:00:12]}  Rc3 {[%clk 0:00:48]} 44. Be2 {[%clk 0:00:09]}  Ra3 {[%clk 0:00:48]} 45. Rb4 {[%clk 0:00:08]}  Ra2 {[%clk 0:00:48]} 46. Bd3 {[%clk 0:00:08]}  e5 {[%clk 0:00:47]} 47. Kf1 {[%clk 0:00:06]}  e4 {[%clk 0:00:46]} 48. Be2 {[%clk 0:00:06]}  f5 {[%clk 0:00:45]} 49. h5 {[%clk 0:00:06]}  Ke6 {[%clk 0:00:44]} 50. h6 {[%clk 0:00:05]}  Nf7 {[%clk 0:00:37]} 51. Rb6+ {[%clk 0:00:04]}  Ke5 {[%clk 0:00:36]} 52. Rb7 {[%clk 0:00:04]}  Nxh6 {[%clk 0:00:36]} 53. Rxh7 {[%clk 0:00:05]}  Ng4 {[%clk 0:00:35]} 54. Bxg4 {[%clk 0:00:05]}  fxg4 {[%clk 0:00:35]} 55. Rg7 {[%clk 0:00:05]}  Rxa4 {[%clk 0:00:30]} 56. Rxg6 {[%clk 0:00:05]}  Kf5 {[%clk 0:00:31]} 57. Rg8 {[%clk 0:00:05]}  Ra1+ {[%clk 0:00:31]} 58. Ke2 {[%clk 0:00:05]}  Ra2+ {[%clk 0:00:31]} 59. Ke3 {[%clk 0:00:05]}  Ra3+ {[%clk 0:00:31]} 60. Kd4 {[%clk 0:00:05]}  Rd3+ {[%clk 0:00:31]} 61. Kc5 {[%clk 0:00:06]}  Rd2 {[%clk 0:00:30]} 62. Rd8 {[%clk 0:00:06]}  Rxf2 {[%clk 0:00:21]} 63. Rf8+ {[%clk 0:00:06]}  Ke5 {[%clk 0:00:20]} 64. Rxf2 {[%clk 0:00:07]}  e3 {[%clk 0:00:20]} 65. Re2 {[%clk 0:00:05]}  Ke4 {[%clk 0:00:18]} 66. Re1 {[%clk 0:00:03]}  d4 {[%clk 0:00:16]} 67. Kc4 {[%clk 0:00:03]}  d3 {[%clk 0:00:15]} 68. Kc3 {[%clk 0:00:03]}  d2 {[%clk 0:00:15]} 69. Rd1 {[%clk 0:00:02]}  Kf3 {[%clk 0:00:15]} 70. Kd3 {[%clk 0:00:02]}  Kf2 {[%clk 0:00:13]} 71. Rxd2+ {[%clk 0:00:02]}  exd2 {[%clk 0:00:13]} 72. Kxd2 {[%clk 0:00:03]}  Kxg3 {[%clk 0:00:13]} 73. Ke1 {[%clk 0:00:04]}  Kh2 {[%clk 0:00:13]} 74. Kf1 {[%clk 0:00:05]}  g3 {[%clk 0:00:14]} 75. Ke2 {[%clk 0:00:06]}  g2 {[%clk 0:00:15]} 76. Kf3 {[%clk 0:00:06]}  g1=Q {[%clk 0:00:16]} 77. Ke2 {[%clk 0:00:07]}  Qg2+ {[%clk 0:00:15]} 78. Ke3 {[%clk 0:00:07]}  Qg6 {[%clk 0:00:15]} 79. Kf4 {[%clk 0:00:07]}  Kh3 {[%clk 0:00:16]} 80. Ke5 {[%clk 0:00:08]}  Kh4 {[%clk 0:00:17]} 81. Kd4 {[%clk 0:00:09]}  Kg4 {[%clk 0:00:17]} 82. Kc5 {[%clk 0:00:10]}  Qf5+ {[%clk 0:00:17]} 83. Kd4 {[%clk 0:00:10]}  Kf4 {[%clk 0:00:17]} 84. Kc3 {[%clk 0:00:11]}  Qd5 {[%clk 0:00:17]} 85. Kb4 {[%clk 0:00:11]}  Ke4 {[%clk 0:00:18]} 86. Kc3 {[%clk 0:00:12]}  Qc6+ {[%clk 0:00:18]} 87. Kb4 {[%clk 0:00:13]}  Kd4 {[%clk 0:00:18]} 88. Kb3 {[%clk 0:00:13]}  Qb5+ {[%clk 0:00:18]} 89. Ka2 {[%clk 0:00:14]}  Kc3 {[%clk 0:00:17]} 90. Ka1 {[%clk 0:00:15]}  Qb2# {[%clk 0:00:17]} 0-1


[Site "https://www.chess.com"]

[Event "Titled Tuesday Blitz May 25 2021"]
[White "Khanin, Semen"]
[Black "Do Valle Cardoso, Lucas"]
[WhiteFideId "4111990"]
[BlackFideId "2163144"]
[WhiteElo "2767"]
[BlackElo "2564"]
[Result "1-0"]
[Round "05"]
[TimeControl "180+1"]
[Date "2021.05.25"]
[WhiteClock "0:02:10"]
[BlackClock "0:01:22"]

1. e4 {[%clk 0:03:00]}  e5 {[%clk 0:02:59]} 2. Nf3 {[%clk 0:03:00]}  Nc6 {[%clk 0:02:59]} 3. Bc4 {[%clk 0:03:00]}  Nf6 {[%clk 0:02:59]} 4. d3 {[%clk 0:02:59]}  Bc5 {[%clk 0:02:59]} 5. c3 {[%clk 0:02:58]}  d6 {[%clk 0:03:00]} 6. h3 {[%clk 0:02:57]}  a6 {[%clk 0:03:00]} 7. Bb3 {[%clk 0:02:55]}  Ba7 {[%clk 0:02:59]} 8. Nbd2 {[%clk 0:02:55]}  h6 {[%clk 0:02:55]} 9. Nf1 {[%clk 0:02:54]}  O-O {[%clk 0:02:55]} 10. Ng3 {[%clk 0:02:54]}  Re8 {[%clk 0:02:55]} 11. O-O {[%clk 0:02:52]}  Be6 {[%clk 0:02:55]} 12. Bc2 {[%clk 0:02:53]}  d5 {[%clk 0:02:54]} 13. exd5 {[%clk 0:02:52]}  Nxd5 {[%clk 0:02:53]} 14. Re1 {[%clk 0:02:51]}  Qf6 {[%clk 0:02:20]} 15. d4 {[%clk 0:02:33]}  exd4 {[%clk 0:02:14]} 16. Nh5 {[%clk 0:02:33]}  Qd8 {[%clk 0:02:08]} 17. Bxh6 {[%clk 0:02:27]}  g6 {[%clk 0:01:51]} 18. Ng7 {[%clk 0:02:23]}  dxc3 {[%clk 0:01:49]} 19. Nxe8 {[%clk 0:02:22]}  cxb2 {[%clk 0:01:46]} 20. Ng7 {[%clk 0:02:11]}  bxa1=Q {[%clk 0:01:43]} 21. Qxa1 {[%clk 0:02:10]}  Qf6 {[%clk 0:01:25]} 22. Qxf6 {[%clk 0:02:10]}  Nxf6 {[%clk 0:01:26]} 23. Nxe6 {[%clk 0:02:10]}  fxe6 {[%clk 0:01:22]} 24. Rxe6 {[%clk 0:02:10]}  Kf7 {[%clk 0:01:22]} 25. Ng5+ {[%clk 0:02:10]} 1-0


[Site "https://www.chess.com"]

[Event "Titled Tuesday Blitz May 25 2021"]
[White "Krivonosov, Oleg"]
[Black "Seul, Georg"]
[WhiteFideId "11600349"]
[BlackFideId "4601653"]
[WhiteElo "2469"]
[BlackElo "2332"]
[Result "1/2-1/2"]
[Round "05"]
[TimeControl "180+1"]
[Date "2021.05.25"]
[WhiteClock "0:01:18"]
[BlackClock "0:00:31"]

1. Nf3 {[%clk 0:03:00]}  Nf6 {[%clk 0:02:59]} 2. c4 {[%clk 0:02:59]}  e6 {[%clk 0:02:59]} 3. g3 {[%clk 0:02:58]}  a6 {[%clk 0:02:59]} 4. Bg2 {[%clk 0:02:57]}  b5 {[%clk 0:02:59]} 5. b3 {[%clk 0:02:57]}  Bb7 {[%clk 0:02:59]} 6. O-O {[%clk 0:02:57]}  c5 {[%clk 0:02:59]} 7. Nc3 {[%clk 0:02:56]}  Qb6 {[%clk 0:02:57]} 8. e3 {[%clk 0:02:55]}  Be7 {[%clk 0:02:56]} 9. Qe2 {[%clk 0:02:54]}  Ne4 {[%clk 0:02:55]} 10. Nxe4 {[%clk 0:02:50]}  Bxe4 {[%clk 0:02:55]} 11. d3 {[%clk 0:02:47]}  Bb7 {[%clk 0:02:55]} 12. Bb2 {[%clk 0:02:47]}  O-O {[%clk 0:02:54]} 13. d4 {[%clk 0:02:46]}  d6 {[%clk 0:02:43]} 14. dxc5 {[%clk 0:02:44]}  dxc5 {[%clk 0:02:41]} 15. Rfd1 {[%clk 0:02:39]}  Nc6 {[%clk 0:02:32]} 16. Ne5 {[%clk 0:02:38]}  Nxe5 {[%clk 0:02:27]} 17. Bxe5 {[%clk 0:02:36]}  Bxg2 {[%clk 0:02:25]} 18. Kxg2 {[%clk 0:02:35]}  Rfd8 {[%clk 0:02:18]} 19. Rac1 {[%clk 0:02:32]}  Rxd1 {[%clk 0:01:51]} 20. Rxd1 {[%clk 0:02:31]}  Rd8 {[%clk 0:01:51]} 21. Rxd8+ {[%clk 0:02:18]}  Qxd8 {[%clk 0:01:51]} 22. Bc3 {[%clk 0:02:05]}  b4 {[%clk 0:01:46]} 23. Bb2 {[%clk 0:02:03]}  Bf6 {[%clk 0:01:33]} 24. Bxf6 {[%clk 0:01:55]}  Qxf6 {[%clk 0:01:33]} 25. Qf3 {[%clk 0:01:54]}  Qxf3+ {[%clk 0:01:31]} 26. Kxf3 {[%clk 0:01:54]}  f6 {[%clk 0:01:30]} 27. Ke4 {[%clk 0:01:52]}  Kf7 {[%clk 0:01:29]} 28. f4 {[%clk 0:01:52]}  Ke7 {[%clk 0:01:21]} 29. f5 {[%clk 0:01:45]}  Kd6 {[%clk 0:01:20]} 30. g4 {[%clk 0:01:38]}  Ke7 {[%clk 0:01:02]} 31. Kf4 {[%clk 0:01:36]}  Kd6 {[%clk 0:01:01]} 32. e4 {[%clk 0:01:33]}  e5+ {[%clk 0:00:59]} 33. Kg3 {[%clk 0:01:32]}  Ke7 {[%clk 0:00:59]} 34. Kh4 {[%clk 0:01:32]}  Kf7 {[%clk 0:00:58]} 35. Kh5 {[%clk 0:01:31]}  Kf8 {[%clk 0:00:34]} 36. g5 {[%clk 0:01:28]}  Kg8 {[%clk 0:00:34]} 37. h4 {[%clk 0:01:26]}  Kh8 {[%clk 0:00:33]} 38. Kg4 {[%clk 0:01:25]}  Kg8 {[%clk 0:00:31]} 39. h5 {[%clk 0:01:20]}  h6 {[%clk 0:00:31]} 40. g6 {[%clk 0:01:19]}  Kf8 {[%clk 0:00:31]} 41. Kf3 {[%clk 0:01:18]} 1/2-1/2


[Site "https://www.chess.com"]

[Event "Titled Tuesday Blitz May 25 2021"]
[White "Lazavik, Denis"]
[Black "Bodnaruk, Anastasia"]
[WhiteFideId "13515110"]
[BlackFideId "4181751"]
[WhiteElo "2834"]
[BlackElo "2606"]
[Result "0-1"]
[Round "05"]
[TimeControl "180+1"]
[Date "2021.05.25"]
[WhiteClock "0:00:09"]
[BlackClock "0:00:04"]

1. d4 {[%clk 0:02:56]}  Nf6 {[%clk 0:02:59]} 2. c4 {[%clk 0:02:56]}  g6 {[%clk 0:02:59]} 3. g3 {[%clk 0:02:56]}  Bg7 {[%clk 0:02:58]} 4. Bg2 {[%clk 0:02:56]}  O-O {[%clk 0:02:59]} 5. Nc3 {[%clk 0:02:56]}  d6 {[%clk 0:02:59]} 6. Nf3 {[%clk 0:02:56]}  Nc6 {[%clk 0:02:59]} 7. O-O {[%clk 0:02:55]}  a6 {[%clk 0:02:59]} 8. h3 {[%clk 0:02:53]}  Rb8 {[%clk 0:02:55]} 9. e4 {[%clk 0:02:52]}  b5 {[%clk 0:02:55]} 10. d5 {[%clk 0:02:51]}  Na5 {[%clk 0:02:52]} 11. cxb5 {[%clk 0:02:49]}  axb5 {[%clk 0:02:51]} 12. b4 {[%clk 0:02:49]}  Nc4 {[%clk 0:02:47]} 13. Nd4 {[%clk 0:02:49]}  Bd7 {[%clk 0:02:47]} 14. a4 {[%clk 0:02:38]}  bxa4 {[%clk 0:02:43]} 15. b5 {[%clk 0:02:39]}  e6 {[%clk 0:02:32]} 16. Qd3 {[%clk 0:02:04]}  Nb6 {[%clk 0:02:26]} 17. Be3 {[%clk 0:01:59]}  exd5 {[%clk 0:02:19]} 18. exd5 {[%clk 0:01:58]}  Re8 {[%clk 0:02:16]} 19. Nc6 {[%clk 0:01:53]}  Bxc6 {[%clk 0:02:16]} 20. dxc6 {[%clk 0:01:50]}  d5 {[%clk 0:01:54]} 21. Bxb6 {[%clk 0:01:37]}  Rxb6 {[%clk 0:01:52]} 22. Nxa4 {[%clk 0:01:37]}  Rb8 {[%clk 0:01:47]} 23. Rac1 {[%clk 0:01:34]}  Ra8 {[%clk 0:01:29]} 24. Nc5 {[%clk 0:01:29]}  Qe7 {[%clk 0:01:13]} 25. Na6 {[%clk 0:01:24]}  Qd6 {[%clk 0:00:56]} 26. Rfe1 {[%clk 0:01:18]}  Re6 {[%clk 0:00:48]} 27. Red1 {[%clk 0:00:36]}  Re5 {[%clk 0:00:37]} 28. f4 {[%clk 0:00:22]}  Re7 {[%clk 0:00:36]} 29. Bxd5 {[%clk 0:00:19]}  Nxd5 {[%clk 0:00:27]} 30. Qxd5 {[%clk 0:00:19]}  Re1+ {[%clk 0:00:26]} 31. Kf2 {[%clk 0:00:11]}  Qxd5 {[%clk 0:00:26]} 32. Rxd5 {[%clk 0:00:12]}  Rxc1 {[%clk 0:00:26]} 33. Nxc7 {[%clk 0:00:13]}  Ra2+ {[%clk 0:00:25]} 34. Ke3 {[%clk 0:00:11]}  Rc3+ {[%clk 0:00:22]} 35. Rd3 {[%clk 0:00:10]}  Rcc2 {[%clk 0:00:13]} 36. Ke4 {[%clk 0:00:08]}  Rab2 {[%clk 0:00:11]} 37. Kd5 {[%clk 0:00:06]}  Bf8 {[%clk 0:00:10]} 38. Re3 {[%clk 0:00:05]}  Rc5+ {[%clk 0:00:10]} 39. Kd4 {[%clk 0:00:05]}  Rc1 {[%clk 0:00:08]} 40. Re8 {[%clk 0:00:05]}  Kg7 {[%clk 0:00:08]} 41. Kd5 {[%clk 0:00:03]}  Rd2+ {[%clk 0:00:06]} 42. Ke4 {[%clk 0:00:02]}  Bc5 {[%clk 0:00:05]} 43. Nd5 {[%clk 0:00:01]}  Re1+ {[%clk 0:00:04]} 44. Kf3 {[%clk 0:00:02]}  Rxe8 {[%clk 0:00:02]} 45. Nc3 {[%clk 0:00:02]}  Rd3+ {[%clk 0:00:03]} 46. Kg4 {[%clk 0:00:03]}  Rxc3 {[%clk 0:00:03]} 47. c7 {[%clk 0:00:03]}  Bb6 {[%clk 0:00:04]} 48. c8=Q {[%clk 0:00:04]}  Rexc8 {[%clk 0:00:03]} 49. h4 {[%clk 0:00:05]}  f5+ {[%clk 0:00:04]} 50. Kh3 {[%clk 0:00:06]}  h5 {[%clk 0:00:04]} 51. Kg2 {[%clk 0:00:06]}  Rc2+ {[%clk 0:00:04]} 52. Kh3 {[%clk 0:00:07]}  Bf2 {[%clk 0:00:03]} 53. Kg2 {[%clk 0:00:07]}  Bxg3+ {[%clk 0:00:03]} 54. Kh3 {[%clk 0:00:08]}  Bxh4 {[%clk 0:00:03]} 55. Kxh4 {[%clk 0:00:07]}  R8c3 {[%clk 0:00:03]} 56. Kg5 {[%clk 0:00:08]}  Rg2+ {[%clk 0:00:03]} 57. Kh4 {[%clk 0:00:09]}  Rg4# {[%clk 0:00:04]} 0-1


[Site "https://www.chess.com"]

[Event "Titled Tuesday Blitz May 25 2021"]
[White "Maksimenko, Viktor"]
[Black "Asis Gargatagli, Hipolito"]
[WhiteFideId "13710478"]
[BlackFideId "2260735"]
[WhiteElo "2571"]
[BlackElo "2803"]
[Result "0-1"]
[Round "05"]
[TimeControl "180+1"]
[Date "2021.05.25"]
[WhiteClock "0:00:03"]
[BlackClock "0:00:43"]

1. d4 {[%clk 0:02:56]}  Nf6 {[%clk 0:02:59]} 2. c4 {[%clk 0:02:56]}  e6 {[%clk 0:03:00]} 3. Nf3 {[%clk 0:02:56]}  d5 {[%clk 0:03:00]} 4. g3 {[%clk 0:02:56]}  Bb4+ {[%clk 0:03:00]} 5. Bd2 {[%clk 0:02:56]}  Be7 {[%clk 0:02:59]} 6. Bg2 {[%clk 0:02:56]}  O-O {[%clk 0:02:59]} 7. O-O {[%clk 0:02:57]}  Nbd7 {[%clk 0:03:00]} 8. Qb3 {[%clk 0:02:57]}  c6 {[%clk 0:02:55]} 9. Bb4 {[%clk 0:02:56]}  c5 {[%clk 0:02:49]} 10. dxc5 {[%clk 0:02:52]}  Nxc5 {[%clk 0:02:50]} 11. Qa3 {[%clk 0:02:49]}  b6 {[%clk 0:02:50]} 12. Nc3 {[%clk 0:01:57]}  Bb7 {[%clk 0:02:49]} 13. cxd5 {[%clk 0:01:53]}  a5 {[%clk 0:02:48]} 14. Bxc5 {[%clk 0:01:49]}  Bxc5 {[%clk 0:02:49]} 15. Qb3 {[%clk 0:01:48]}  Nxd5 {[%clk 0:02:46]} 16. Rfd1 {[%clk 0:01:37]}  Qe7 {[%clk 0:02:30]} 17. Na4 {[%clk 0:01:14]}  Ba6 {[%clk 0:02:29]} 18. Nxc5 {[%clk 0:00:57]}  bxc5 {[%clk 0:02:28]} 19. e3 {[%clk 0:00:48]}  Rab8 {[%clk 0:02:22]} 20. Qc2 {[%clk 0:00:48]}  Qf6 {[%clk 0:02:21]} 21. Rab1 {[%clk 0:00:35]}  Rfc8 {[%clk 0:02:15]} 22. a3 {[%clk 0:00:34]}  h6 {[%clk 0:02:11]} 23. Nd2 {[%clk 0:00:29]}  c4 {[%clk 0:01:59]} 24. Ne4 {[%clk 0:00:24]}  Qg6 {[%clk 0:01:56]} 25. Qd2 {[%clk 0:00:23]}  a4 {[%clk 0:01:08]} 26. Nc3 {[%clk 0:00:23]}  Nxc3 {[%clk 0:01:03]} 27. Qxc3 {[%clk 0:00:24]}  Rb3 {[%clk 0:01:03]} 28. Qa5 {[%clk 0:00:23]}  Bb5 {[%clk 0:00:50]} 29. Rd8+ {[%clk 0:00:04]}  Kh7 {[%clk 0:00:50]} 30. Rbd1 {[%clk 0:00:01]}  Rxd8 {[%clk 0:00:47]} 31. Qxd8 {[%clk 0:00:02]}  Rxb2 {[%clk 0:00:47]} 32. Qd4 {[%clk 0:00:03]}  Rb1 {[%clk 0:00:44]} 33. Be4 {[%clk 0:00:03]}  Rxd1+ {[%clk 0:00:44]} 34. Kg2 {[%clk 0:00:02]}  Rxd4 {[%clk 0:00:43]} 35. Bxg6+ {[%clk 0:00:03]}  Kxg6 {[%clk 0:00:43]} 0-1


[Site "https://www.chess.com"]

[Event "Titled Tuesday Blitz May 25 2021"]
[White "Maksimovic, Bojan"]
[Black "Tabatabaei, M. Amin"]
[WhiteFideId "14408120"]
[BlackFideId "12521213"]
[WhiteElo "2437"]
[BlackElo "2555"]
[Result "0-1"]
[Round "05"]
[TimeControl "180+1"]
[Date "2021.05.25"]
[WhiteClock "0:00:03"]
[BlackClock "0:00:06"]

1. g3 {[%clk 0:03:00]}  f5 {[%clk 0:02:54]} 2. Bg2 {[%clk 0:02:59]}  Nf6 {[%clk 0:02:55]} 3. d4 {[%clk 0:02:59]}  g6 {[%clk 0:02:55]} 4. Nf3 {[%clk 0:02:59]}  Bg7 {[%clk 0:02:55]} 5. O-O {[%clk 0:02:59]}  O-O {[%clk 0:02:56]} 6. c4 {[%clk 0:02:59]}  d6 {[%clk 0:02:56]} 7. Nc3 {[%clk 0:02:59]}  c6 {[%clk 0:02:55]} 8. b4 {[%clk 0:02:37]}  Qc7 {[%clk 0:02:51]} 9. Bb2 {[%clk 0:02:35]}  e5 {[%clk 0:02:50]} 10. c5 {[%clk 0:02:28]}  e4 {[%clk 0:02:49]} 11. cxd6 {[%clk 0:02:27]}  Qxd6 {[%clk 0:02:50]} 12. Ne5 {[%clk 0:02:27]}  Be6 {[%clk 0:02:49]} 13. b5 {[%clk 0:02:17]}  c5 {[%clk 0:02:39]} 14. Na4 {[%clk 0:01:41]}  cxd4 {[%clk 0:02:30]} 15. Qxd4 {[%clk 0:01:29]}  Qxd4 {[%clk 0:02:20]} 16. Bxd4 {[%clk 0:01:30]}  Ng4 {[%clk 0:02:20]} 17. Nxg4 {[%clk 0:01:06]}  Bxd4 {[%clk 0:02:17]} 18. Rad1 {[%clk 0:01:06]}  Bg7 {[%clk 0:02:18]} 19. Ne3 {[%clk 0:01:06]}  Nd7 {[%clk 0:01:53]} 20. f3 {[%clk 0:00:47]}  Bh6 {[%clk 0:01:39]} 21. Nd5 {[%clk 0:00:38]}  Bxd5 {[%clk 0:01:30]} 22. Rxd5 {[%clk 0:00:39]}  Nf6 {[%clk 0:01:31]} 23. Rd6 {[%clk 0:00:39]}  Rad8 {[%clk 0:01:27]} 24. Rxd8 {[%clk 0:00:36]}  Rxd8 {[%clk 0:01:28]} 25. fxe4 {[%clk 0:00:36]}  Be3+ {[%clk 0:01:19]} 26. Kh1 {[%clk 0:00:36]}  Nxe4 {[%clk 0:01:09]} 27. Bxe4 {[%clk 0:00:36]}  fxe4 {[%clk 0:01:10]} 28. Nc3 {[%clk 0:00:36]}  Rd2 {[%clk 0:01:08]} 29. Rd1 {[%clk 0:00:35]}  Rxd1+ {[%clk 0:00:29]} 30. Nxd1 {[%clk 0:00:35]}  Bd4 {[%clk 0:00:30]} 31. e3 {[%clk 0:00:35]}  Bb6 {[%clk 0:00:29]} 32. Nf2 {[%clk 0:00:20]}  Kf7 {[%clk 0:00:29]} 33. Nxe4 {[%clk 0:00:20]}  Ke6 {[%clk 0:00:24]} 34. Kg2 {[%clk 0:00:20]}  Bxe3 {[%clk 0:00:23]} 35. Kf3 {[%clk 0:00:20]}  Bb6 {[%clk 0:00:18]} 36. h4 {[%clk 0:00:12]}  h6 {[%clk 0:00:16]} 37. a4 {[%clk 0:00:07]}  Ke5 {[%clk 0:00:16]} 38. Nc3 {[%clk 0:00:03]}  Kd4 {[%clk 0:00:16]} 39. Ne2+ {[%clk 0:00:03]}  Kc4 {[%clk 0:00:16]} 40. Nf4 {[%clk 0:00:04]}  g5 {[%clk 0:00:16]} 41. hxg5 {[%clk 0:00:04]}  hxg5 {[%clk 0:00:17]} 42. Ne6 {[%clk 0:00:05]}  Kb4 {[%clk 0:00:15]} 43. Nxg5 {[%clk 0:00:05]}  Kxa4 {[%clk 0:00:16]} 44. Ne6 {[%clk 0:00:05]}  Kxb5 {[%clk 0:00:15]} 45. g4 {[%clk 0:00:04]}  Ba5 {[%clk 0:00:14]} 46. g5 {[%clk 0:00:02]}  Bc3 {[%clk 0:00:14]} 47. g6 {[%clk 0:00:02]}  a5 {[%clk 0:00:15]} 48. Ke4 {[%clk 0:00:02]}  Kc4 {[%clk 0:00:15]} 49. g7 {[%clk 0:00:01]}  Bxg7 {[%clk 0:00:15]} 50. Nxg7 {[%clk 0:00:02]}  a4 {[%clk 0:00:16]} 51. Nf5 {[%clk 0:00:03]}  a3 {[%clk 0:00:10]} 52. Ne3+ {[%clk 0:00:02]}  Kb3 {[%clk 0:00:10]} 53. Kd3 {[%clk 0:00:02]}  a2 {[%clk 0:00:09]} 54. Nc2 {[%clk 0:00:02]}  Kb2 {[%clk 0:00:08]} 55. Kd2 {[%clk 0:00:02]}  b5 {[%clk 0:00:08]} 56. Kd3 {[%clk 0:00:01]}  b4 {[%clk 0:00:08]} 57. Nxb4 {[%clk 0:00:01]}  a1=Q {[%clk 0:00:08]} 58. Nd5 {[%clk 0:00:02]}  Qd1+ {[%clk 0:00:08]} 59. Kc4 {[%clk 0:00:03]}  Qa4+ {[%clk 0:00:07]} 60. Kc5 {[%clk 0:00:03]}  Qa8 {[%clk 0:00:08]} 61. Nb6 {[%clk 0:00:02]}  Qh8 {[%clk 0:00:08]} 62. Kb5 {[%clk 0:00:03]}  Kb3 {[%clk 0:00:09]} 63. Kc6 {[%clk 0:00:03]}  Qh5 {[%clk 0:00:10]} 64. Nd5 {[%clk 0:00:03]}  Qh6+ {[%clk 0:00:10]} 65. Kc5 {[%clk 0:00:03]}  Qh5 {[%clk 0:00:11]} 66. Kd4 {[%clk 0:00:03]}  Qg4+ {[%clk 0:00:10]} 67. Ke5 {[%clk 0:00:04]}  Qg5+ {[%clk 0:00:09]} 68. Kd4 {[%clk 0:00:05]}  Qd8 {[%clk 0:00:09]} 69. Ke5 {[%clk 0:00:05]}  Kc4 {[%clk 0:00:09]} 70. Ne3+ {[%clk 0:00:06]}  Kc5 {[%clk 0:00:09]} 71. Nf5 {[%clk 0:00:06]}  Qe8+ {[%clk 0:00:09]} 72. Kf4 {[%clk 0:00:05]}  Kd5 {[%clk 0:00:09]} 73. Ne3+ {[%clk 0:00:06]}  Kd4 {[%clk 0:00:09]} 74. Nf5+ {[%clk 0:00:07]}  Kd3 {[%clk 0:00:10]} 75. Nd6 {[%clk 0:00:07]}  Qf8+ {[%clk 0:00:08]} 76. Ke5 {[%clk 0:00:07]}  Qg8 {[%clk 0:00:07]} 77. Nf5 {[%clk 0:00:07]}  Kc4 {[%clk 0:00:07]} 78. Ne7 {[%clk 0:00:06]}  Qg5+ {[%clk 0:00:04]} 79. Nf5 {[%clk 0:00:06]}  Kc5 {[%clk 0:00:04]} 80. Ke4 {[%clk 0:00:06]}  Qf6 {[%clk 0:00:04]} 81. Ne3 {[%clk 0:00:04]}  Qe6+ {[%clk 0:00:05]} 82. Kd3 {[%clk 0:00:04]}  Qe5 {[%clk 0:00:05]} 83. Nc2 {[%clk 0:00:04]}  Qf5+ {[%clk 0:00:05]} 84. Kc3 {[%clk 0:00:04]}  Qf3+ {[%clk 0:00:04]} 85. Kd2 {[%clk 0:00:04]}  Kc4 {[%clk 0:00:05]} 86. Ne3+ {[%clk 0:00:04]}  Kd4 {[%clk 0:00:05]} 87. Nc2+ {[%clk 0:00:04]}  Ke4 {[%clk 0:00:06]} 88. Nb4 {[%clk 0:00:05]}  Qb3 {[%clk 0:00:05]} 89. Nc2 {[%clk 0:00:05]}  Qb2 {[%clk 0:00:05]} 90. Kd1 {[%clk 0:00:02]}  Kd3 {[%clk 0:00:06]} 91. Ne1+ {[%clk 0:00:02]}  Kc3 {[%clk 0:00:06]} 92. Nf3 {[%clk 0:00:03]}  Qf2 {[%clk 0:00:06]} 0-1


[Site "https://www.chess.com"]